Cogmind - Beta 13 @@@ ROGUE MODE // 2024.05.09 @ 17:19:26 Player: Barbarossa Result: Destroyed by Y-45 Defender with Beam Rifle Performance ------------- Evolutions (1) 500 Regions Visited (2) 400 Robots Destroyed (26) 130 Value Destroyed (798) 798 Prototype IDs (2) 40 Alien Tech Used (0) 0 Bonus (11) 11 TOTAL SCORE: 1879 Bonus ------- High Alert Combat Kills 11 Cogmind --------- Core Integrity 0/400 Matter 233/300 Energy 257/265 System Corruption 9% Temperature Cool (13) Movement Treading (160) Location -9/Materials Parts ------- > --- POWER (1) -------- Improved Ion Engine > --- PROPULSION (4) --- Light Treads Light Treads Light Treads Light Treads > --- UTILITY (2) ------ Improved Heat Sink Medium Storage Unit > --- WEAPON (2) ------- Beam Rifle Spread Laser > --- INVENTORY (10) --- Light Treads Light Treads Compact Wheel Compact Wheel Light Armor Plating Improved Assault Rifle Peak State ------------ > --- POWER ------------ Light Nuclear Core > --- PROPULSION ------- Compact Wheel Improved Hover Unit Improved Hover Unit Improved Hover Unit > --- UTILITY ---------- Improved Heat Sink Medium Storage Unit > --- WEAPON ----------- Spread Laser Spread Laser > --- INVENTORY -------- Light Treads Light Treads Light Treads Light Treads Compact Wheel Compact Wheel Beam Rifle Spread Laser Spread Laser Improved Assault Rifle [Rating: 19] Favorites ----------- Power Light Ion Engine Engine Light Ion Engine Power Core Light Nuclear Core Propulsion Improved Hover Unit Treads Light Treads Leg Aluminum Leg Wheel Compact Wheel Hover Unit Improved Hover Unit Utility Small Storage Unit Device Improved Heat Sink Storage Small Storage Unit Weapon Spread Laser Energy Gun Spread Laser Ballistic Gun Light Assault Rifle Build | -11 -10 -9 ------- Run | Yrd Mat Mat Slots Evolved 2 | . . 2 Power . | . . . Propulsion 2 | . . 2 Utility . | . . . Weapon . | . . . Parts Attached 37 | . 13 24 Power 11 | . 2 9 Engine 8 | . 2 6 Core 3 | . . 3 Reactor . | . . . Propulsion 14 | . 6 8 Treads 4 | . . 4 Leg 2 | . 2 . Wheel 4 | . 2 2 Hover 4 | . 2 2 Flight . | . . . Utility 4 | . 2 2 Device 3 | . 2 1 Storage 1 | . . 1 Processor . | . . . Hackware . | . . . Protection . | . . . Artifact . | . . . Weapon 8 | . 3 5 Energy Gun 6 | . 2 4 Energy Cannon . | . . . Ballistic Gun 2 | . 1 1 Ballistic Cannon . | . . . Launcher . | . . . Special Weapon . | . . . Impact Weapon . | . . . Slashing Weapon . | . . . Piercing Weapon . | . . . Special Melee Weapon . | . . . Unidentified Prototypes 2 | . . 2 Parts Lost 16 | . 4 12 Power 4 | . 1 3 Propulsion 7 | . 2 5 Utility 1 | . . 1 Weapon 4 | . 1 3 Highest Loss Streak 10 | . 4 10 To Critical Strikes 1 | . . 1 Average Slot Usage (%) 88 | . 84 91 Engine 8 | . 12 5 Core 1 | . . 3 Treads 3 | . . 5 Leg 4 | . 9 . Wheel 6 | . 5 6 Hover 20 | . 12 26 Device 7 | . 3 10 Storage 12 | . 14 11 Energy Gun 19 | . 16 21 Ballistic Gun 4 | . 9 . Naked Turns . | . . . Heaviest Build 25 | 10 17 25 Greatest Support 80 | 20 26 80 Greatest Overweight (x) 1 | . 1 1 Average Overweight (x) . | . . . Largest Inventory Capacity 10 | . 8 10 Average Capacity 8 | . 8 9 Most Carried 10 | . 8 10 Average Carried 7 | . 7 8 Final Capacity 10 | 8 8 10 Final Carried 8 | 6 8 6 Class Distribution -------------------- 63% | Mutant 36% | Scavenger-Mutant Dominant Class ---------------- Mutant | -10/Materials Scavenger-Mutant | -9/Materials Resources | -11 -10 -9 ----------- Run | Yrd Mat Mat Matter Collected 531 | 200 136 195 Remotely . | . . . Salvage Created 891 | . 272 619 Parts 60 | . 18 42 Haulers Intercepted 2 | . 1 1 Recyclers Shooed . | . . . Parts Field Recycled . | . . . Retrieved Matter . | . . . Parts Self-Destructed . | . . . Prevented . | . . . Kills | -11 -10 -9 ------- Run | Yrd Mat Mat Combat Hostiles Destroyed 21 | . 7 14 Guns 21 | . 7 14 Classes Destroyed 8 | . 4 4 Hauler 2 | . 1 1 Recycler 1 | . . 1 Operator 1 | . . 1 Watcher 1 | . 1 . Swarmer 3 | . 3 . Grunt 14 | . 4 10 Brawler 1 | . . 1 Sentry 3 | . . 3 Best Kill Streak 7 | . 5 7 Combat Bots Only 6 | . 5 6 Max Kills in Single Turn 2 | . 2 1 Gunslinging . | . . . Exploded . | . . . Melee . | . . . Uniques/NPCs Destroyed . | . . . Combat | -11 -10 -9 -------- Run | Yrd Mat Mat Hostile Shots Fired 158 | . 65 93 Missed 49 | . 23 26 Damage Taken 1634 | . 503 1131 Core 452 | . 43 409 Absorbed by Shields . | . . . Core Remaining (%) 91 | 100 82 . Volleys Fired 58 | . 27 31 Largest 2 | . 2 2 Hottest 130 | . 130 130 Shots Fired 107 | . 46 61 Gun 107 | . 46 61 Cannon . | . . . Launcher . | . . . Special . | . . . Kinetic 36 | . 36 . Thermal 71 | . 10 61 Explosive . | . . . Electromagnetic . | . . . Robot Hit Streak 12 | . 4 12 Robot Miss Streak 7 | . 6 7 Penetration Max . | . . . Secondary Targets 5 | . 3 2 Max Gunslinging Chain 1 | . 1 1 Shots Hit Robots 83 | . 30 53 Core Hits 107 | . 28 79 Critical Kills . | . . . Critical Parts Destroyed . | . . . Critical Strikes . | . . . Melee Attacks . | . . . Impact . | . . . Slashing . | . . . Piercing . | . . . Sneak Attacks . | . . . Combat Hostiles . | . . . Follow-up Attacks . | . . . Damage Inflicted 1147 | . 288 859 Guns 1081 | . 288 793 Cannons . | . . . Explosions 25 | . . 25 Melee . | . . . Ramming 41 | . . 41 Kinetic 166 | . 166 . Thermal 915 | . 122 793 Explosive . | . . . Electromagnetic 25 | . . 25 Impact . | . . . Slashing . | . . . Piercing . | . . . Highest Corruption 9 | . . 9 Average Corruption 6 | . . 6 Corruption Purged . | . . . Corruption Blocked . | . . . Effects 3 | . . 3 Message Errors 1 | . . 1 Data Loss (major) 1 | . . 1 Alerts 1 | . . 1 Overload Shots . | . . . Overflow Damage 1 | . . 1 Projectiles . | . . . Explosions 1 | . . 1 Melee . | . . . Knockbacks . | . . . Impact . | . . . Kinetic . | . . . Secondary . | . . . Self-Inflicted Damage 215 | . . 215 Shots 4 | . . 4 Rammed 3 | . . 3 Targets Rammed 3 | . . 3 Kicked . | . . . Crushed . | . . . Highest Temperature 443 | . 199 443 Average Temperature 81 | . 57 92 Received Heat Transfer 648 | . 228 420 Effects 2 | . . 2 Shutdowns 1 | . . 1 Matter Decay 1 | . . 1 Siege Activations . | . . . Robots Corrupted . | . . . Combat Hostiles . | . . . Parts Fried . | . . . Impact Corruptions . | . . . Robots Melted . | . . . Combat Hostiles . | . . . Parts Melted 1 | . 1 . Heat Transferred 1152 | . 150 1002 Parts Sabotaged . | . . . Parts Stolen . | . . . Parts Stripped . | . . . Power Chain Reactions 1 | . . 1 Alert | -11 -10 -9 ------- Run | Yrd Mat Mat Peak Influence 452 | . 164 452 Initial 68 | . . 68 Average 169 | . 86 234 Maximum Alert Level 2 | . . 2 Low Security (%) 65 | . 100 39 Level 1 27 | . . 48 Level 2 6 | . . 12 Level 3 . | . . . Level 4 . | . . . Level 5 . | . . . High Security . | . . . Max Security . | . . . Squads Dispatched 2 | . 1 1 Investigation 1 | . 1 . Extermination . | . . . Reinforcement 1 | . . 1 Assault . | . . . Garrison . | . . . Intercept . | . . . Searches Triggered . | . . . Construction Impeded . | . . . Haulers Reinforced . | . . . Active Scanning Responses . | . . . Cargo Convoy Interrupts . | . . . Stealth | -11 -10 -9 --------- Run | Yrd Mat Mat Distress Signals 4 | . 1 3 Communications Jammed . | . . . Distress Signals . | . . . Times Spotted 28 | . 9 19 Peak Tracking Total 6 | . 5 6 Tactical Retreats . | . . . Traps | -11 -10 -9 ------- Run | Yrd Mat Mat Traps Triggered 1 | . 1 . Indirectly . | . . . Trap Hack Attempts . | . . . Triggered . | . . . Disarmed . | . . . Reprogrammed . | . . . Reused . | . . . Traps Extracted . | . . . Installed . | . . . Triggered . | . . . Machines | -11 -10 -9 ---------- Run | Yrd Mat Mat Machines Disabled 4 | . . 4 Max in Single Turn 4 | . . 4 Machines Repaired . | . . . Machines Dismantled . | . . . Machines Sabotaged . | . . . Overloaded Fab Kills . | . . . Hacking | -11 -10 -9 --------- Run | Yrd Mat Mat Machines Accessed 2 | . 1 1 Terminals 2 | . 1 1 Fabricators . | . . . Repair Stations . | . . . Recycling Units . | . . . Scanalyzers . | . . . Garrison Access . | . . . Total Hacks 6 | . 3 3 Successful 1 | . 1 . Failed 5 | . 2 3 Catastrophic 1 | . 1 . Database Lockouts . | . . . Manual 6 | . 3 3 Terminals 6 | . 3 3 Fabricators . | . . . Repair Stations . | . . . Recycling Units . | . . . Scanalyzers . | . . . Garrison Access . | . . . Terminal Hacks . | . . . Fabricator Hacks . | . . . Repair Station Hacks . | . . . Recycling Unit Hacks . | . . . Scanalyzer . | . . . Garrison Access Hacks . | . . . Unauthorized Hacks 1 | . 1 . Terminals 1 | . 1 . Botnet 1 | . 1 . Fabricators . | . . . Repair Stations . | . . . Recycling Units . | . . . Scanalyzers . | . . . Garrison Access . | . . . Data Cores Recovered 1 | . . 1 Used . | . . . Hacking Detections 2 | . 1 1 Full Trace Events . | . . . Feedback Events . | . . . Feedback Blocked . | . . . Robot Schematics Acquired . | . . . Robots Built . | . . . Authchips . | . . . Time . | . . . Total Robot Build Rating . | . . . Part Schematics Acquired . | . . . Parts Built . | . . . Authchips . | . . . Time . | . . . Total Part Build Rating . | . . . Parts Repaired . | . . . Time . | . . . Parts Recycled . | . . . Recycled Matter . | . . . Retrieved Matter . | . . . Retrieved Components . | . . . Parts Scanalyzed . | . . . Part Schematics Acquired . | . . . Parts Damaged . | . . . Bothacking | -11 -10 -9 ------------ Run | Yrd Mat Mat Used RIF Installer . | . . . Robots Hacked . | . . . Non-combat . | . . . Combat . | . . . Robot Hacks Applied . | . . . Relay Couplers Released . | . . . Fabnet Peak Effective % . | . . . Robots Rewired . | . . . Allies Hacked . | . . . Hacks Repelled . | . . . Allies | -11 -10 -9 -------- Run | Yrd Mat Mat Total Allies . | . . . Largest Group . | . . . Highest-Rated Group . | . . . Highest-Rated Ally . | . . . Total Orders . | . . . Ally Attacks . | . . . Total Damage . | . . . Kills . | . . . Allies Corrupted . | . . . Allies Melted . | . . . Intel | -11 -10 -9 ------- Run | Yrd Mat Mat Robot Analysis Total . | . . . Derelict Logs Recovered . | . . . Drone Launches . | . . . Drone Recoveries . | . . . Exploration | -11 -10 -9 ------------- Run | Yrd Mat Mat Turns Passed 774 | . 337 437 Spaces Moved 571 | 1 326 244 Core . | . . . Treads 29 | . . 29 Legs 53 | 1 52 . Wheels 97 | . 48 49 Hover 392 | . 226 166 Flight . | . . . Fastest Speed 48 | 120 56 48 Average Speed 81 | 120 72 91 Slowest Speed 160 | 120 120 160 Overloaded Moves . | . . . Propulsion Burnouts . | . . . Robots Hopped . | . . . Cave-ins Triggered . | . . . Exploration Rate (%) 25 | 2 47 26 Regions Visited 2 Branch Regions . Pre-discovered Areas . | . . . Known Exits Taken . | . . . Unknown Exits Taken 2 | 1 1 . Scrap Searched . | . . . Spaces Dug . | . . . Terrain Destroyed 24 | . . 24 Melee . | . . . Projectile . | . . . AOE 24 | . . 24 Terrain Rammed . | . . . Walls Destroyed . | . . . Machines Disabled . | . . . Actions | -11 -10 -9 --------- Run | Yrd Mat Mat Total 782 | . 386 396 Wait 74 | . . 74 Move 569 | . 325 244 Hop . | . . . Pick Up 21 | . 11 10 Fast Attach 15 | . 6 9 Attach 11 | . 2 9 Detach . | . . . Swap 11 | . 5 6 Drop 20 | . 10 10 Fire 58 | . 27 31 Melee . | . . . Ram 3 | . . 3 Kick . | . . . Crush . | . . . Escape Stasis . | . . . Rewire . | . . . Trap . | . . . Miscellaneous . | . . . Route ------- -11/Scrapyard -10/Materials -9/Materials History --------- Turn | Location | Event 1 | -11/Scrapyard | Discovered new exit (range 0) 1 | -11/Scrapyard | Entered Materials 112 | -10/Materials | Lost 4 parts (1p2n1w) 324 | -10/Materials | Discovered new exit (range 4) 338 | -10/Materials | Entered another Materials area 338 | -9/Materials | Evolved 2 slots: Propulsion x2 686 | -9/Materials | Core integrity fell below 50% 686 | -9/Materials | Core integrity fell below 20% 725 | -9/Materials | Lost 10 parts (3p4n3w) 775 | -9/Materials | Destroyed by Y-45 Defender with Beam Rifle Last Messages --------------- 00700_ K-01 Serf collects debris. 00701_ U-05 Engineer lays Concrete. 00702_ Acquired Lgt. Treads. 00703_ U-05 Engineer lays Concrete. 00704_ Acquired Lgt. Treads. 00705_ U-05 Engineer lays Concrete. 00707_ U-05 Engineer builds a Wall. 00717_ U-05 Engineer lays Concrete. 00719_ Acquired Imp. Ion Engine. 00719_ U-05 Engineer builds a Wall. 00720_ U-05 Engineer lays Concrete. 00724_ U-05 Engineer builds a Wall. 00725_ U-05 Engineer lays Concrete. 00734_ Acquired 3 matter. 00735_ U-05 Engineer lays Concrete. 00742_ Acquired Lgt. Armor Plating. 00756_ System corrupted: IFF burst signal emitted. 00762_ K-01 Serf collects debris. 00765_ W-16 Scout sends out distress signal. Map ----- +----------------------------------------------------+ | ????????????????????????????????????# """ #% !# | | ????????????????????????????????????# # # | | ????????????????????????????????? + ! # # | | ????????????????????????????????############ # | | ???????????????????????????????????????????# # | | ???????????????????????????????????????????# # | | ???????????????????????????????????????????# # | | ???????????????????????????????????????????# # | | ???????????????????????????????????????????# # | | ??????????????????????????????????????????## # | | ????????????????????? [?????????????????# | | ???????????????????? [?????????????????# | | ???????????????????? ?????????????????# %* | | ???????????????????? ?????????????????# ] | | ???????????????????? ?????????????????#]]] | | ????????????????????# ]?????????????????##%=*# | | ????????????????????# ]??????????????????#*=%# | | ????????????????????+ ]??????????????????# !*# | | ????????????????????# ??????????????????# =# | | ????????????????????# ??????????????????#=*=# | | ????????????????????# #??????????????????# %=% | | ????????????????????# ##?????????????????# =!# | | ????????????????????# ??????????????????# # | | ????????????????????# "??????????????????# # | | ????????????????????? #??????????????????# # | | ??????????????????????#@#???###????????????# # | | ??????????????????????# #?### ####?????????# # | | ??????????????????????# #?# % #?????????# | | ??????????????????????# #?# T ########### # | | ??????????????????????# #?# = # # # | | ??????????????????????# ### / !# " # # | | ??????????????????????# # # " # T | | ??????????????????????# + # + # | | ??????????????????????# # # "*# # | | ??????????????????????# # # = "%# # | | ??????????????????????# # # ! !%=# # | | ??????????????????????#Y # # / =%%!## | | ??????????????????????/ + # """+### | | ??????????????????????# # # "%#?# | | ??????????????????????# # ## ##### #?# | | ??????????????????????# ########?##??##%### | | ??????????????????????# #??????####### | | ??????????????????????# #??????# # | | ??????????????????????# #??????# # | | ??????????????????????# #??????# """ # | | ??????????????????????# ???????# """ # """ | | ???????????????^^????? ???????# """ # """ | | ??????????????????????? ???????# + """ | | ?????????????????????????????????# """ # | | ?????????????????????????????????# """ # | +----------------------------------------------------+ Best States ------------- Heat Dissipation 42 Energy Generation 14 Energy Capacity 280 Matter Stores 300 Matter Capacity 300 Sight Range 16 Terrain Scan Density 10 Evasion (%) 55 Recoil Reduction 4 Item Schematics ----------------- None Robot Schematics ------------------ None Fabricated ------------ Nothing Alien Tech Used ----------------- None Achievements -------------- None Challenges ------------ None Game ------ Seed HypervelocityEnergyClaw Manual? 0 Play Time 00:15:03 Cumulative 159.4 hours Start 2024.05.09 @ 13:25:29 End 2024.05.09 @ 17:19:26 Sessions 2 Manual Loads 0 Difficulty Rogue Special Mode None Game No. 307 Rogue 307 Adventurer 0 Explorer 0 Win Type - Total 0 Types 0/0/0/0/0/0/0/0/0 Lore% 41 Gallery% 52 Achievement% 37 Wizard Run 0 Options --------- Layout 1 ASCII 0 Keyboard 0 Movement Mouse Keybinds 0 Fullscreen 1 Font 24/Smallcaps Map View 50x40 Zoom Use 0% Tactical HUD 1 Map Filters NONE Filters NONE Steam 1 RUN: f8288a6e-f0fd-4356-890c-9c3217eb944c